{"text_format":"1","workbook":"xlsx","n_sheets":3,"sheets":["Refusionsskema","Lister","Vlookup"],"not_rendered":{"charts":0,"images":1,"macros":1,"external_links":1,"defined_names":43,"comments":0,"pivot_tables":0},"unopened":[],"bounds":{"document_bytes":16777216,"sheet_cells":100000,"rows_first":2000,"rows_last":500,"rows_between":2000,"halvings":0,"cell_chars":16384,"cell_head_chars":4096},"cells_cut":0,"cells_raw":0,"read":"whole","date_system":"1900"}

{"sheet":"Refusionsskema","index":0,"n_rows":36,"n_cols":8,"rows_kept":36,"cut":false,"hidden":false,"merged":[[0,3,0,7],[31,0,33,7],[35,0,36,7],[1,3,2,7],[10,3,11,7],[13,3,16,7]]}
[null,null,null,"Guide til anvendelse af refusionsskema"]
[null,null,null,"Skemaet kan kun indeholde én slags udgift. Hvis du fx både har udgifter, der skal konteres på din afdeling, og nogle, der skal konteres på fx et samråd, så skal du udfylde skemaet ad to omgange."]
[null,"          Refusionsskema"]
[null,null,null,"Udfyld skemaet og send det sammen med de relevante bilag til dn@rejsebilag.dk"]
[null,null,null,"Farven på felterne afgør, hvilke type felt det er:"]
["Navn",null,null,"=","Du skal selv udfylde dette felt med relevant information"]
["CPR-nummer",null,"Kun et krav ved kørselsrefusion og honorar","=","Du skal vælge den relevente type i rullelisten"]
["Adresse",null,null,"=","Du skal IKKE skrive noget i dette felt."]
["Postnr og by"]
["E-mail",null,null,"Udgiftstypen \"DN-udlæg\" er til refusion for alle udgifter, du har en kvittering for. "]
["Telefonnummer",null,null,"Udgiftstypen \"Bestyrelsesmøder\" er til refusion for bestyrelsesmøder, hvor det er tilladt at afholde udgifter for op til 30,00 kr. pr. deltager uden at vedlægge bilag."]
["Registrerings- og kontonummer"]
[null,null,null,"Udgiftstypen \"Honorar\" skal udfyldes med honorarmodtagers data. "]
["Udgiftstype",null,{"$f":"IF(B14=\"\",\"<--- Skal udfyldes ved brug af rullemenu\",\"\")","v":"<--- Skal udfyldes ved brug af rullemenu"},"Udgiftstypen \"Kilometergodtgørelse\" forudsætter angivelse af  start- og slutadresse samt det kørte antal kilometer. Kørsel i privatbil refunderes efter statens lave kilometersats, takst II, som er kr. 2,23 (2024). Refusion af kørselsudgifter forudsætter, at du opgiver dit CPR-nummer - selvom refusionen er skattefri."]
["Specifikation ",null,{"$f":"IF(B15=\"\",\"<--- Skal udfyldes ved brug af rullemenu\",\"\")","v":"<--- Skal udfyldes ved brug af rullemenu"}]
["Afdeling/Netværk/Øvrige",null,{"$f":"IF(B16=\"\",\"<--- Skal udfyldes ved brug af rullemenu\",\"\")","v":"<--- Skal udfyldes ved brug af rullemenu"}]
["DN Godkender",{"$f":"IFERROR(VLOOKUP(Refusionsskema!G20,Vlookup!C3:D29,2,FALSE),\"\")","v":""}]
[]
["Dato","Udgiftstype","Formål","Beløb","Kun ved kørsel:\nAntal kilometer","Kun ved kørsel:\nAngiv til/fra-adressen","Projekt","Afdeling"]
[null,null,null,null,null,null,{"$f":"IF(B20<>\"\",IFERROR(VLOOKUP($B$15,Vlookup!$B$3:$C$30,2,FALSE),\"\"),\"\")","v":""},{"$f":"IF(B20<>\"\",IFERROR(VLOOKUP($B$16,Vlookup!$F$2:$G$114,2,FALSE),\"\"),\"\")","v":""}]
[null,null,null,null,null,null,{"$f":"IF(B21<>\"\",IFERROR(VLOOKUP($B$15,Vlookup!$B$3:$C$30,2,FALSE),\"\"),\"\")","v":""},{"$f":"IF(B21<>\"\",IFERROR(VLOOKUP($B$16,Vlookup!$F$2:$G$114,2,FALSE),\"\"),\"\")","v":""}]
[null,null,null,null,null,null,{"$f":"IF(B22<>\"\",IFERROR(VLOOKUP($B$15,Vlookup!$B$3:$C$30,2,FALSE),\"\"),\"\")","v":""},{"$f":"IF(B22<>\"\",IFERROR(VLOOKUP($B$16,Vlookup!$F$2:$G$114,2,FALSE),\"\"),\"\")","v":""}]
[null,null,null,null,null,null,{"$f":"IF(B23<>\"\",IFERROR(VLOOKUP($B$15,Vlookup!$B$3:$C$30,2,FALSE),\"\"),\"\")","v":""},{"$f":"IF(B23<>\"\",IFERROR(VLOOKUP($B$16,Vlookup!$F$2:$G$114,2,FALSE),\"\"),\"\")","v":""}]
[null,null,null,null,null,null,{"$f":"IF(B24<>\"\",IFERROR(VLOOKUP($B$15,Vlookup!$B$3:$C$30,2,FALSE),\"\"),\"\")","v":""},{"$f":"IF(B24<>\"\",IFERROR(VLOOKUP($B$16,Vlookup!$F$2:$G$114,2,FALSE),\"\"),\"\")","v":""}]
[null,null,null,null,null,null,{"$f":"IF(B25<>\"\",IFERROR(VLOOKUP($B$15,Vlookup!$B$3:$C$30,2,FALSE),\"\"),\"\")","v":""},{"$f":"IF(B25<>\"\",IFERROR(VLOOKUP($B$16,Vlookup!$F$2:$G$114,2,FALSE),\"\"),\"\")","v":""}]
[null,null,null,null,null,null,{"$f":"IF(B26<>\"\",IFERROR(VLOOKUP($B$15,Vlookup!$B$3:$C$30,2,FALSE),\"\"),\"\")","v":""},{"$f":"IF(B26<>\"\",IFERROR(VLOOKUP($B$16,Vlookup!$F$2:$G$114,2,FALSE),\"\"),\"\")","v":""}]
[null,null,null,null,null,null,{"$f":"IF(B27<>\"\",IFERROR(VLOOKUP($B$15,Vlookup!$B$3:$C$30,2,FALSE),\"\"),\"\")","v":""},{"$f":"IF(B27<>\"\",IFERROR(VLOOKUP($B$16,Vlookup!$F$2:$G$114,2,FALSE),\"\"),\"\")","v":""}]
[null,null,null,null,null,null,{"$f":"IF(B28<>\"\",IFERROR(VLOOKUP($B$15,Vlookup!$B$3:$C$30,2,FALSE),\"\"),\"\")","v":""},{"$f":"IF(B28<>\"\",IFERROR(VLOOKUP($B$16,Vlookup!$F$2:$G$114,2,FALSE),\"\"),\"\")","v":""}]
[null,null,"Total",{"$f":"SUM(D20:D28)","v":0},{"$f":"SUM(E20:E28)","v":0}]
[]
["Kommentar: "]
[]
[]
[]
[]
["Alle PDF-fakturaer, der skal betales direkte til leverandøren, skal sendes til dn@invoiceportal.dk. Husk, at gøre leverandøren opmærksom på at tilføje en kontaktperson eller lokalafdeling på fakturaren. Øvrige typer af fakturaer samt øvrige henvendelser skal sendes til regnskab@dn.dk"]

{"sheet":"Lister","index":1,"n_rows":133,"n_cols":32,"rows_kept":133,"cut":false,"hidden":true,"merged":[]}
[null,null,null,"Type",null,"Type omk."]
[null,null,null,"Vælg fra liste",null,"100 - DN-udlæg"]
[null,null,null,"Afdelingsudgifter",null,"260 - Kilometergodtgørelse (Frivillige)"]
[null,null,null,"Samråd",null,"230 - Bestyrelsesmøder"]
[null,null,null,"Netværk",null,"280 - Honorar "]
[null,null,null,"Udvalg"]
[null,null,null,"ISOBRO"]
[null,null,null,"Grønt_Guld"]
[null,null,null,"Hovedbestyrelse"]
[null,null,null,"Repræsentantskab"]
[null,null,null,"Andet"]
[]
[]
[]
[]
[null,null,null,"Afdelingsudgifter","ISOBRO","Grønt_Guld","Samråd","Netværk","Hovedbestyrelse","Repræsentantskab","Udvalg","Andet"]
[null,null,null,"Bornholm","ISOBRO_2024","Grønt_Guld_2021","Samrråd_Fyn","Netværk_","Hovedbestyrelse_","Repræsentantskab_","IT_Udvalg","Andet_Skriv_i_kommentar_felt"]
[null,null,null,"DN_FLOR",null,null,"Samråd_Nordjylland",null,null,null,"Mjljøfagligt_Udvalg"]
[null,null,null,"Fyn ",null,null,"Samråd_NordsjællandBornholm",null,null,null,"Naturfagligt_Udvalg"]
[null,null,null,"Nordjylland",null,null,"Samråd_Sjælland",null,null,null,"Organisationsudvalget"]
[null,null,null,"Nordsjælland",null,null,"Samråd_Storkøbenhavn",null,null,null,"Planfagligt_Udvalg"]
[null,null,null,"Region_Sjælland",null,null,"Samråd_Sydjylland"]
[null,null,null,"Storkøbenhavn",null,null,"Samråd_Vestjylland"]
[null,null,null,"Sydjylland",null,null,"Samråd_Østjylland"]
[null,null,null,"Vestjylland "]
[null,null,null,"Østjylland"]
[]
[]
[]
[]
[]
[]
[]
[null,null,null,"Østjylland","Storkøbenhavn","Vestjylland ","Nordsjælland","Bornholm","Fyn ","Sydjylland","Nordjylland","Region Sjælland","DN_FLOR","ISOBRO 2024","Grønt Guld 2021","Samråd Nordjylland","Samråd Vestjylland","Samråd Østjylland","Samråd Sydjylland","Samråd Sjælland","Samråd NordsjællandBornholm","Samråd Storkøbenhavn","Samrråd Fyn","Netværk_","Hovedbestyrelse_","Repræsentantskab_","IT Udvalg","Mjljøfagligt Udvalg","Naturfagligt Udvalg","Planfagligt Udvalg","Organisationsudvalget","Andet_Skriv_i_kommentar_felt"]
[null,null,null,"Favrskov","Albertslund","Herning","Allerød","Bornholm","Assens","Billund","Brønderslev","Faxe","FLOR København ","Albertslund","Albertslund","Organisation","Organisation","Organisation","Organisation","Organisation","Organisation","Organisation","Organisation","Biodiversitetsnetværk","Organisation","Organisation","Organisation","Organisation","Organisation","Organisation","Organisation","Skriv DN medarbejder i kommentar"]
[null,null,null,"Hedensted","Amager","Holstebro","Egedal",null,"FLOR Odense","Esbjerg","Frederikshavn","Greve","FLOR Aalborg","Allerød","Allerød",null,null,null,null,null,null,null,null,"Børnenetværk"]
[null,null,null,"Horsens","Ballerup","Ikast Brande","Fredensborg",null,"Faaborg Midtfyn","Fanø","Hjørring","Guldborgsund","FLOR Aarhus","Amager","Amager",null,null,null,null,null,null,null,null,"Havnetværk "]
[null,null,null,"Norddjurs","Brøndby","Lemvig","Frederikssund",null,"Kerteminde","Fredericia","Jammerbugt","Holbæk",null,"Assens","Assens",null,null,null,null,null,null,null,null,"It-netværk "]
[null,null,null,"Odder","Frederiksberg","Ringkøbing Skjern","Furesø",null,"Langeland","Haderslev","Mariagerfjord","Kalundborg",null,"Ballerup","Ballerup",null,null,null,null,null,null,null,null,"Jagtnetværk"]
[null,null,null,"Randers","Gentofte","Skive","Gribskov",null,"Middelfart","Kolding","Morsø","Køge",null,"Billund","Billund",null,null,null,null,null,null,null,null,"Klimanetværket"]
[null,null,null,"Samsø","Gladsaxe","Struer","Halsnæs",null,"Nordfyn","Sønderborg","Rebild","Lejre",null,"Bornholm","Bornholm",null,null,null,null,null,null,null,null,"Kommunalpolitisk netværk"]
[null,null,null,"Silkeborg","Glostrup","Viborg","Helsingør",null,"Nyborg","Tønder","Thy","Lolland",null,"Brøndby","Brøndby",null,null,null,null,null,null,null,null,"Natur- og nationalparknetværk"]
[null,null,null,"Skanderborg","Herlev",null,"Hillerød",null,"Odense","Varde","Vesthimmerland","Næstved",null,"Brønderslev","Brønderslev",null,null,null,null,null,null,null,null,"Naturguide-netværket "]
[null,null,null,"Syddjurs","Hvidovre",null,"Hørsholm",null,"Svendborg","Vejen","Aalborg","Odsherred",null,"Egedal","Egedal",null,null,null,null,null,null,null,null,"Naturplejenetværk"]
[null,null,null,"Århus","Høje Taastrup",null,"Rudersdal",null,"Ærø","Vejle",null,"Ringsted",null,"Esbjerg","Esbjerg",null,null,null,null,null,null,null,null,"Råstofnetværket "]
[null,null,null,null,"København",null,null,null,null,"Aabenraa",null,"Roskilde",null,"Fanø","Fanø",null,null,null,null,null,null,null,null,"Skovnetværk"]
[null,null,null,null,"Lyngby Taarnbæk",null,null,null,null,null,null,"Slagelse",null,"Favrskov","Favrskov"]
[null,null,null,null,"Rødovre",null,null,null,null,null,null,"Solrød",null,"Faxe","Faxe"]
[null,null,null,null,"Vallensbæk/Ishøj",null,null,null,null,null,null,"Sorø",null,"FLOR København","FLOR København"]
[null,null,null,null,null,null,null,null,null,null,null,"Stevns",null,"FLOR Odense","FLOR Odense"]
[null,null,null,null,null,null,null,null,null,null,null,"Vordingborg",null,"FLOR Aalborg","FLOR Aalborg"]
[null,null,null,null,null,null,null,null,null,null,null,null,null,"FLOR Aarhus","FLOR Aarhus"]
[null,null,null,null,null,null,null,null,null,null,null,null,null,"Fredensborg","Fredensborg"]
[null,null,null,null,null,null,null,null,null,null,null,null,null,"Fredericia","Fredericia"]
[null,null,null,null,null,null,null,null,null,null,null,null,null,"Frederiksberg","Frederiksberg"]
[null,null,null,null,null,null,null,null,null,null,null,null,null,"Frederikshavn","Frederikshavn"]
[null,null,null,null,null,null,null,null,null,null,null,null,null,"Frederikssund","Frederikssund"]
[null,null,null,null,null,null,null,null,null,null,null,null,null,"Furesø","Furesø"]
[null,null,null,null,null,null,null,null,null,null,null,null,null,"Faaborg Midtfyn","Faaborg Midtfyn"]
[null,null,null,null,null,null,null,null,null,null,null,null,null,"Gentofte","Gentofte"]
[null,null,null,null,null,null,null,null,null,null,null,null,null,"Gladsaxe","Gladsaxe"]
[null,null,null,null,null,null,null,null,null,null,null,null,null,"Glostrup","Glostrup"]
[null,null,null,null,null,null,null,null,null,null,null,null,null,"Greve","Greve"]
[null,null,null,null,null,null,null,null,null,null,null,null,null,"Gribskov","Gribskov"]
[null,null,null,null,null,null,null,null,null,null,null,null,null,"Guldborgsund","Guldborgsund"]
[null,null,null,null,null,null,null,null,null,null,null,null,null,"Haderslev","Haderslev"]
[null,null,null,null,null,null,null,null,null,null,null,null,null,"Halsnæs","Halsnæs"]
[null,null,null,null,null,null,null,null,null,null,null,null,null,"Hedensted","Hedensted"]
[null,null,null,null,null,null,null,null,null,null,null,null,null,"Helsingør","Helsingør"]
[null,null,null,null,null,null,null,null,null,null,null,null,null,"Herlev","Herlev"]
[null,null,null,null,null,null,null,null,null,null,null,null,null,"Herning","Herning"]
[null,null,null,null,null,null,null,null,null,null,null,null,null,"Hillerød","Hillerød"]
[null,null,null,null,null,null,null,null,null,null,null,null,null,"Hjørring","Hjørring"]
[null,null,null,null,null,null,null,null,null,null,null,null,null,"Holbæk","Holbæk"]
[null,null,null,null,null,null,null,null,null,null,null,null,null,"Holstebro","Holstebro"]
[null,null,null,null,null,null,null,null,null,null,null,null,null,"Horsens","Horsens"]
[null,null,null,null,null,null,null,null,null,null,null,null,null,"Hvidovre","Hvidovre"]
[null,null,null,null,null,null,null,null,null,null,null,null,null,"Høje Taastrup","Høje Taastrup"]
[null,null,null,null,null,null,null,null,null,null,null,null,null,"Hørsholm","Hørsholm"]
[null,null,null,null,null,null,null,null,null,null,null,null,null,"Ikast Brande","Ikast Brande"]
[null,null,null,null,null,null,null,null,null,null,null,null,null,"Jammerbugt","Jammerbugt"]
[null,null,null,null,null,null,null,null,null,null,null,null,null,"Kalundborg","Kalundborg"]
[null,null,null,null,null,null,null,null,null,null,null,null,null,"Kerteminde","Kerteminde"]
[null,null,null,null,null,null,null,null,null,null,null,null,null,"Kolding","Kolding"]
[null,null,null,null,null,null,null,null,null,null,null,null,null,"København","København"]
[null,null,null,null,null,null,null,null,null,null,null,null,null,"Køge","Køge"]
[null,null,null,null,null,null,null,null,null,null,null,null,null,"Langeland","Langeland"]
[null,null,null,null,null,null,null,null,null,null,null,null,null,"Lejre","Lejre"]
[null,null,null,null,null,null,null,null,null,null,null,null,null,"Lemvig","Lemvig"]
[null,null,null,null,null,null,null,null,null,null,null,null,null,"Lolland","Lolland"]
[null,null,null,null,null,null,null,null,null,null,null,null,null,"Lyngby Taarnbæk","Lyngby Taarnbæk"]
[null,null,null,null,null,null,null,null,null,null,null,null,null,"Mariagerfjord","Mariagerfjord"]
[null,null,null,null,null,null,null,null,null,null,null,null,null,"Middelfart","Middelfart"]
[null,null,null,null,null,null,null,null,null,null,null,null,null,"Morsø","Morsø"]
[null,null,null,null,null,null,null,null,null,null,null,null,null,"Norddjurs","Norddjurs"]
[null,null,null,null,null,null,null,null,null,null,null,null,null,"Nordfyn","Nordfyn"]
[null,null,null,null,null,null,null,null,null,null,null,null,null,"Nyborg","Nyborg"]
[null,null,null,null,null,null,null,null,null,null,null,null,null,"Næstved","Næstved"]
[null,null,null,null,null,null,null,null,null,null,null,null,null,"Odder","Odder"]
[null,null,null,null,null,null,null,null,null,null,null,null,null,"Odense","Odense"]
[null,null,null,null,null,null,null,null,null,null,null,null,null,"Odsherred","Odsherred"]
[null,null,null,null,null,null,null,null,null,null,null,null,null,"Randers","Randers"]
[null,null,null,null,null,null,null,null,null,null,null,null,null,"Rebild","Rebild"]
[null,null,null,null,null,null,null,null,null,null,null,null,null,"Ringkøbing Skjern","Ringkøbing Skjern"]
[null,null,null,null,null,null,null,null,null,null,null,null,null,"Ringsted","Ringsted"]
[null,null,null,null,null,null,null,null,null,null,null,null,null,"Roskilde","Roskilde"]
[null,null,null,null,null,null,null,null,null,null,null,null,null,"Rudersdal","Rudersdal"]
[null,null,null,null,null,null,null,null,null,null,null,null,null,"Rødovre","Rødovre"]
[null,null,null,null,null,null,null,null,null,null,null,null,null,"Samsø","Samsø"]
[null,null,null,null,null,null,null,null,null,null,null,null,null,"Silkeborg","Silkeborg"]
[null,null,null,null,null,null,null,null,null,null,null,null,null,"Skanderborg","Skanderborg"]
[null,null,null,null,null,null,null,null,null,null,null,null,null,"Skive","Skive"]
[null,null,null,null,null,null,null,null,null,null,null,null,null,"Slagelse","Slagelse"]
[null,null,null,null,null,null,null,null,null,null,null,null,null,"Solrød","Solrød"]
[null,null,null,null,null,null,null,null,null,null,null,null,null,"Sorø","Sorø"]
[null,null,null,null,null,null,null,null,null,null,null,null,null,"Stevns","Stevns"]
[null,null,null,null,null,null,null,null,null,null,null,null,null,"Struer","Struer"]
[null,null,null,null,null,null,null,null,null,null,null,null,null,"Svendborg","Svendborg"]
[null,null,null,null,null,null,null,null,null,null,null,null,null,"Syddjurs","Syddjurs"]
[null,null,null,null,null,null,null,null,null,null,null,null,null,"Sønderborg","Sønderborg"]
[null,null,null,null,null,null,null,null,null,null,null,null,null,"Thy","Thy"]
[null,null,null,null,null,null,null,null,null,null,null,null,null,"Tønder","Tønder"]
[null,null,null,null,null,null,null,null,null,null,null,null,null,"Vallensbæk/Ishøj","Vallensbæk/Ishøj"]
[null,null,null,null,null,null,null,null,null,null,null,null,null,"Varde","Varde"]
[null,null,null,null,null,null,null,null,null,null,null,null,null,"Vejen","Vejen"]
[null,null,null,null,null,null,null,null,null,null,null,null,null,"Vejle","Vejle"]
[null,null,null,null,null,null,null,null,null,null,null,null,null,"Vesthimmerland","Vesthimmerland"]
[null,null,null,null,null,null,null,null,null,null,null,null,null,"Viborg","Viborg"]
[null,null,null,null,null,null,null,null,null,null,null,null,null,"Vordingborg","Vordingborg"]
[null,null,null,null,null,null,null,null,null,null,null,null,null,"Ærø","Ærø"]
[null,null,null,null,null,null,null,null,null,null,null,null,null,"Aabenraa","Aabenraa"]
[null,null,null,null,null,null,null,null,null,null,null,null,null,"Aalborg","Aalborg"]
[null,null,null,null,null,null,null,null,null,null,null,null,null,"Århus","Århus"]

{"sheet":"Vlookup","index":2,"n_rows":114,"n_cols":8,"rows_kept":114,"cut":false,"hidden":true,"merged":[]}
[]
[null,"Projekt","Projektnummer","Godkender",null,"Afdelning","Afdelingsnummer","Godkender"]
[null,"Østjylland",2220,"Jenny Marie Kruse",null,"København","1101","Julie Worre"]
[null,"Storkøbenhavn",2221,"Julie Worre",null,"FLOR København ","1102","Anna Rask Larsen"]
[null,"Vestjylland ",2222,"Sophie Lundbæk",null,"Frederiksberg","1147","Julie Worre"]
[null,"Nordsjælland",2223,"Sophie Lundbæk",null,"Ballerup","1151","Julie Worre"]
[null,"Bornholm",2224,"Sophie Lundbæk",null,"Brøndby","1153","Julie Worre"]
[null,"Fyn ",2225,"Jenny Marie Kruse",null,"Amager","1155","Julie Worre"]
[null,"Sydjylland",2226,"Julie Worre",null,"Gentofte","1157","Julie Worre"]
[null,"Nordjylland",2227,"Kristian Ørsted Pedersen",null,"Gladsaxe","1159","Julie Worre"]
[null,"Region_Sjælland",2228,"Kristian Ørsted Pedersen",null,"Glostrup","1161","Julie Worre"]
[null,"DN_FLOR",2229,"Anna Rask Larsen",null,"Herlev","1163","Julie Worre"]
[null,"ISOBRO_2024",2153,"Sophie Lundbæk",null,"Albertslund","1165","Julie Worre"]
[null,"Grønt_Guld_2021",2144,"Tove Preisler Christiansen",null,"Hvidovre","1167","Julie Worre"]
[null,"Samråd_Nordjylland",2230,"Kristian Ørsted Pedersen",null,"Høje Taastrup","1169","Julie Worre"]
[null,"Samråd_Vestjylland",2231,"Sophie Lundbæk",null,"Lyngby Taarnbæk","1173","Julie Worre"]
[null,"Samråd_Østjylland",2232,"Jenny Marie Kruse",null,"Rødovre","1175","Julie Worre"]
[null,"Samråd_Sydjylland",2233,"Julie Worre",null,"Vallensbæk/Ishøj","1187","Julie Worre"]
[null,"Samråd_Sjælland",2234,"Kristian Ørsted Pedersen",null,"Furesø","1190","Sophie Lundbæk"]
[null,"Samråd_NordsjællandBornholm",2235,"Sophie Lundbæk",null,"Allerød","1201","Sophie Lundbæk"]
[null,"Samråd_Storkøbenhavn",2236,"Julie Worre",null,"Fredensborg","1210","Sophie Lundbæk"]
[null,"Samrråd_Fyn",2237,"Jenny Marie Kruse",null,"Helsingør","1217","Sophie Lundbæk"]
[null,"Netværk_",2240,"Sophie Lundbæk",null,"Hillerød","1219","Sophie Lundbæk"]
[null,"Hovedbestyrelse_",2280,"Rikke Friis Højland",null,"Hørsholm","1223","Sophie Lundbæk"]
[null,"Repræsentantskab_",2260,"Bente Bækgaard",null,"Rudersdal","1230","Sophie Lundbæk"]
[null,"Mjljøfagligt_Udvalg",2291,"Rikke Lundsgaard",null,"Egedal","1240","Sophie Lundbæk"]
[null,"Naturfagligt_Udvalg",2292,"Daniella Humm Møller",null,"Frederikssund","1250","Sophie Lundbæk"]
[null,"Planfagligt_Udvalg",2293,"Nina Larsen Saarnak",null,"Greve","1253","Kristian Ørsted Pedersen"]
[null,"Organisationsudvalget",2294,"Mikkel Havelund",null,"Køge","1259","Kristian Ørsted Pedersen"]
[null,"IT_Udvalg",2295,"Sophie Lundbæk",null,"Halsnæs","1260","Sophie Lundbæk"]
[null,null,null,null,null,"Roskilde","1265","Kristian Ørsted Pedersen"]
[null,null,null,null,null,"Solrød","1269","Kristian Ørsted Pedersen"]
[null,null,null,null,null,"Gribskov","1270","Sophie Lundbæk"]
[null,null,null,null,null,"Odsherred","1306","Kristian Ørsted Pedersen"]
[null,null,null,null,null,"Holbæk","1316","Kristian Ørsted Pedersen"]
[null,null,null,null,null,"Faxe","1320","Kristian Ørsted Pedersen"]
[null,null,null,null,null,"Kalundborg","1326","Kristian Ørsted Pedersen"]
[null,null,null,null,null,"Ringsted","1329","Kristian Ørsted Pedersen"]
[null,null,null,null,null,"Slagelse","1330","Kristian Ørsted Pedersen"]
[null,null,null,null,null,"Stevns","1336","Kristian Ørsted Pedersen"]
[null,null,null,null,null,"Sorø","1340","Kristian Ørsted Pedersen"]
[null,null,null,null,null,"Lejre","1350","Kristian Ørsted Pedersen"]
[null,null,null,null,null,"Lolland","1360","Kristian Ørsted Pedersen"]
[null,null,null,null,null,"Næstved","1370","Kristian Ørsted Pedersen"]
[null,null,null,null,null,"Guldborgsund","1376","Kristian Ørsted Pedersen"]
[null,null,null,null,null,"Vordingborg","1390","Kristian Ørsted Pedersen"]
[null,null,null,null,null,"Bornholm","1400","Sophie Lundbæk"]
[null,null,null,null,null,"Middelfart","1410","Jenny Marie Kruse"]
[null,null,null,null,null,"Assens","1420","Jenny Marie Kruse"]
[null,null,null,null,null,"Faaborg Midtfyn","1430","Jenny Marie Kruse"]
[null,null,null,null,null,"Kerteminde","1440","Jenny Marie Kruse"]
[null,null,null,null,null,"Nyborg","1450","Jenny Marie Kruse"]
[null,null,null,null,null,"Odense","1461","Jenny Marie Kruse"]
[null,null,null,null,null,"FLOR Odense","1462","Jenny Marie Kruse"]
[null,null,null,null,null,"Svendborg","1479","Jenny Marie Kruse"]
[null,null,null,null,null,"Nordfyn","1480","Jenny Marie Kruse"]
[null,null,null,null,null,"Langeland","1482","Jenny Marie Kruse"]
[null,null,null,null,null,"Ærø","1492","Jenny Marie Kruse"]
[null,null,null,null,null,"Haderslev","1510","Julie Worre"]
[null,null,null,null,null,"Billund","1530","Julie Worre"]
[null,null,null,null,null,"Sønderborg","1540","Julie Worre"]
[null,null,null,null,null,"Tønder","1550","Julie Worre"]
[null,null,null,null,null,"Esbjerg","1561","Julie Worre"]
[null,null,null,null,null,"Fanø","1563","Julie Worre"]
[null,null,null,null,null,"Varde","1573","Julie Worre"]
[null,null,null,null,null,"Vejen","1575","Julie Worre"]
[null,null,null,null,null,"Aabenraa","1580","Julie Worre"]
[null,null,null,null,null,"Fredericia","1607","Julie Worre"]
[null,null,null,null,null,"Horsens","1615","Jenny Marie Kruse"]
[null,null,null,null,null,"Kolding","1621","Julie Worre"]
[null,null,null,null,null,"Vejle","1630","Julie Worre"]
[null,null,null,null,null,"Herning","1657","Sophie Lundbæk"]
[null,null,null,null,null,"Holstebro","1661","Sophie Lundbæk"]
[null,null,null,null,null,"Lemvig","1665","Sophie Lundbæk"]
[null,null,null,null,null,"Struer","1671","Sophie Lundbæk"]
[null,null,null,null,null,"Syddjurs","1706","Jenny Marie Kruse"]
[null,null,null,null,null,"Norddjurs","1707","Jenny Marie Kruse"]
[null,null,null,null,null,"Favrskov","1710","Jenny Marie Kruse"]
[null,null,null,null,null,"Odder","1727","Jenny Marie Kruse"]
[null,null,null,null,null,"Randers","1730","Jenny Marie Kruse"]
[null,null,null,null,null,"Silkeborg","1740","Jenny Marie Kruse"]
[null,null,null,null,null,"Samsø","1741","Jenny Marie Kruse"]
[null,null,null,null,null,"Skanderborg","1746","Jenny Marie Kruse"]
[null,null,null,null,null,"Aarhus","1751","Jenny Marie Kruse"]
[null,null,null,null,null,"FLOR Aarhus","1752","Anna Rask Larsen"]
[null,null,null,null,null,"Ikast Brande","1756","Sophie Lundbæk"]
[null,null,null,null,null,"Ringkøbing Skjern","1760","Sophie Lundbæk"]
[null,null,null,null,null,"Hedensted","1766","Jenny Marie Kruse"]
[null,null,null,null,null,"Morsø","1773","Kristian Ørsted Pedersen"]
[null,null,null,null,null,"Skive","1779","Sophie Lundbæk"]
[null,null,null,null,null,"Thy","1787","Kristian Ørsted Pedersen"]
[null,null,null,null,null,"Viborg","1791","Sophie Lundbæk"]
[null,null,null,null,null,"Brønderslev","1810","Kristian Ørsted Pedersen"]
[null,null,null,null,null,"Frederikshavn","1813","Kristian Ørsted Pedersen"]
[null,null,null,null,null,"Vesthimmerland","1820","Kristian Ørsted Pedersen"]
[null,null,null,null,null,"Rebild","1840","Kristian Ørsted Pedersen"]
[null,null,null,null,null,"Mariagerfjord","1846","Kristian Ørsted Pedersen"]
[null,null,null,null,null,"Jammerbugt","1849","Kristian Ørsted Pedersen"]
[null,null,null,null,null,"Aalborg","1851","Kristian Ørsted Pedersen"]
[null,null,null,null,null,"FLOR Aalborg","1852","Anna Rask Larsen"]
[null,null,null,null,null,"Hjørring","1860","Kristian Ørsted Pedersen"]
[null,null,null,null,null,"Organisation",2000," "]
[null,null,null,null,null,"Biodiversitetsnetværk",9001,"Sophie Lundbæk"]
[null,null,null,null,null,"Børnenetværk",9002,"Lene Gryning"]
[null,null,null,null,null,"Havnetværk ",9003,"Sophie Lundbæk"]
[null,null,null,null,null,"It-netværk ",9004,"Sophie Lundbæk"]
[null,null,null,null,null,"Jagtnetværk",9005,"Sophie Lundbæk"]
[null,null,null,null,null,"Klimanetværket",9006,"Sophie Lundbæk"]
[null,null,null,null,null,"Kommunalpolitisk netværk",9007,"Sophie Lundbæk"]
[null,null,null,null,null,"Natur- og nationalparknetværk",9008,"Sophie Lundbæk"]
[null,null,null,null,null,"Naturguide-netværket ",9009,"Sophie Lundbæk"]
[null,null,null,null,null,"Naturplejenetværk",9010,"Sophie Lundbæk"]
[null,null,null,null,null,"Råstofnetværket ",9011,"Sophie Lundbæk"]
[null,null,null,null,null,"Skovnetværk",9012,"Sophie Lundbæk"]